[Event "Titled Tuesday Blitz August 15 Early 2023"]
[White "Martinez Reyes, Pedro Ramon"]
[Black "Vaishali, Rameshbabu"]
[WhiteFideId "3901807"]
[BlackFideId "5091756"]
[WhiteElo "2527"]
[BlackElo "2653"]
[Result "0-1"]
[Round "10"]
[TimeControl "180+1"]
[Date "2023.08.15"]
[WhiteClock "0:00:44"]
[BlackClock "0:00:08"]
[Board "53"]

1. e4 {[%clk 0:03:00]}  c5 {[%clk 0:02:58]} 2. Nf3 {[%clk 0:03:00]}  e6 {[%clk 0:02:59]} 3. c3 {[%clk 0:03:00]}  Nf6 {[%clk 0:02:56]} 4. e5 {[%clk 0:03:00]}  Nd5 {[%clk 0:02:56]} 5. b4 {[%clk 0:03:01]}  cxb4 {[%clk 0:02:52]} 6. c4 {[%clk 0:03:01]}  Nc7 {[%clk 0:02:39]} 7. d4 {[%clk 0:03:01]}  d6 {[%clk 0:02:40]} 8. Bb2 {[%clk 0:02:59]}  Nc6 {[%clk 0:02:39]} 9. exd6 {[%clk 0:02:57]}  Bxd6 {[%clk 0:02:39]} 10. Bd3 {[%clk 0:02:57]}  Be7 {[%clk 0:02:29]} 11. O-O {[%clk 0:02:47]}  O-O {[%clk 0:02:21]} 12. Qe2 {[%clk 0:02:46]}  Bf6 {[%clk 0:02:16]} 13. Qe4 {[%clk 0:02:45]}  g6 {[%clk 0:02:15]} 14. Nbd2 {[%clk 0:02:38]}  Bg7 {[%clk 0:01:51]} 15. Rfe1 {[%clk 0:02:36]}  e5 {[%clk 0:01:10]} 16. d5 {[%clk 0:02:31]}  Bf5 {[%clk 0:01:06]} 17. Qe2 {[%clk 0:02:31]}  Bxd3 {[%clk 0:01:03]} 18. Qxd3 {[%clk 0:02:28]}  e4 {[%clk 0:01:03]} 19. Qb3 {[%clk 0:02:22]}  Na5 {[%clk 0:00:49]} 20. Qxb4 {[%clk 0:02:22]}  Bxb2 {[%clk 0:00:38]} 21. Qxb2 {[%clk 0:02:23]}  exf3 {[%clk 0:00:39]} 22. Qc3 {[%clk 0:02:23]}  b6 {[%clk 0:00:28]} 23. Ne4 {[%clk 0:02:23]}  f6 {[%clk 0:00:26]} 24. Re3 {[%clk 0:02:21]}  Rc8 {[%clk 0:00:24]} 25. Qd4 {[%clk 0:02:01]}  Ne6 {[%clk 0:00:23]} 26. Qd1 {[%clk 0:01:53]}  Nc5 {[%clk 0:00:19]} 27. Nd2 {[%clk 0:01:47]}  fxg2 {[%clk 0:00:18]} 28. Qe2 {[%clk 0:01:47]}  Re8 {[%clk 0:00:17]} 29. Re1 {[%clk 0:01:44]}  Rxe3 {[%clk 0:00:17]} 30. Qxe3 {[%clk 0:01:45]}  Qd7 {[%clk 0:00:17]} 31. Qf4 {[%clk 0:01:36]}  Kf7 {[%clk 0:00:13]} 32. Re3 {[%clk 0:01:31]}  Re8 {[%clk 0:00:13]} 33. Nf3 {[%clk 0:01:28]}  Rxe3 {[%clk 0:00:12]} 34. fxe3 {[%clk 0:01:29]}  Kg7 {[%clk 0:00:12]} 35. Kxg2 {[%clk 0:01:25]}  Nab7 {[%clk 0:00:11]} 36. Nd4 {[%clk 0:01:25]}  Qd6 {[%clk 0:00:10]} 37. Qg4 {[%clk 0:01:22]}  Qd7 {[%clk 0:00:10]} 38. Qf4 {[%clk 0:01:15]}  Nd6 {[%clk 0:00:11]} 39. Nc6 {[%clk 0:01:15]}  Nce4 {[%clk 0:00:08]} 40. Nd4 {[%clk 0:01:12]}  Nc5 {[%clk 0:00:07]} 41. Nc6 {[%clk 0:01:12]}  g5 {[%clk 0:00:08]} 42. Qd4 {[%clk 0:01:10]}  Qf5 {[%clk 0:00:07]} 43. Nxa7 {[%clk 0:01:05]}  Qc2+ {[%clk 0:00:07]} 44. Kh3 {[%clk 0:01:04]}  Nde4 {[%clk 0:00:07]} 45. d6 {[%clk 0:00:59]}  h5 {[%clk 0:00:07]} 46. Qb2 {[%clk 0:00:44]}  g4+ {[%clk 0:00:07]} 47. Kh4 {[%clk 0:00:44]}  Qxb2 {[%clk 0:00:08]} 48. Nc6 {[%clk 0:00:44]}  Qxh2# {[%clk 0:00:08]} 0-1


[Site "https://www.chess.com"]

[Event "Titled Tuesday Blitz August 15 Early 2023"]
[White "Colas, Joshua"]
[Black "gmbenjaminbok"]
[WhiteFideId "2044447"]
[WhiteElo "2628"]
[BlackElo "2918"]
[Result "0-1"]
[Round "10"]
[TimeControl "180+1"]
[Date "2023.08.15"]
[WhiteClock "0:00:46"]
[BlackClock "0:00:45"]
[Board "55"]

1. Nf3 {[%clk 0:02:40]}  d5 {[%clk 0:02:59]} 2. c4 {[%clk 0:02:40]}  e6 {[%clk 0:02:53]} 3. g3 {[%clk 0:02:39]}  Nf6 {[%clk 0:02:52]} 4. Bg2 {[%clk 0:02:39]}  dxc4 {[%clk 0:02:50]} 5. Qa4+ {[%clk 0:02:39]}  Nbd7 {[%clk 0:02:50]} 6. O-O {[%clk 0:02:35]}  a6 {[%clk 0:02:48]} 7. Qxc4 {[%clk 0:02:35]}  b5 {[%clk 0:02:48]} 8. Qc2 {[%clk 0:02:35]}  Bb7 {[%clk 0:02:49]} 9. b3 {[%clk 0:02:34]}  Be7 {[%clk 0:02:45]} 10. Bb2 {[%clk 0:02:34]}  O-O {[%clk 0:02:45]} 11. d3 {[%clk 0:02:32]}  c5 {[%clk 0:02:45]} 12. Nc3 {[%clk 0:02:33]}  Qb6 {[%clk 0:02:44]} 13. Rac1 {[%clk 0:02:30]}  Rfd8 {[%clk 0:02:44]} 14. Rfd1 {[%clk 0:02:29]}  Rac8 {[%clk 0:02:44]} 15. Qb1 {[%clk 0:02:29]}  h6 {[%clk 0:02:43]} 16. Qa1 {[%clk 0:02:30]}  Bc6 {[%clk 0:02:32]} 17. e4 {[%clk 0:02:25]}  Bb7 {[%clk 0:02:19]} 18. h3 {[%clk 0:02:18]}  Ne8 {[%clk 0:02:17]} 19. Ne2 {[%clk 0:02:18]}  Bf6 {[%clk 0:02:16]} 20. d4 {[%clk 0:02:17]}  Bxe4 {[%clk 0:02:07]} 21. Nf4 {[%clk 0:02:02]}  Qb7 {[%clk 0:02:04]} 22. Ne1 {[%clk 0:01:51]}  Bxg2 {[%clk 0:02:02]} 23. Nexg2 {[%clk 0:01:52]}  cxd4 {[%clk 0:02:00]} 24. Rxc8 {[%clk 0:01:47]}  Rxc8 {[%clk 0:02:01]} 25. Nh5 {[%clk 0:01:45]}  e5 {[%clk 0:01:31]} 26. g4 {[%clk 0:01:40]}  g6 {[%clk 0:01:26]} 27. Nxf6+ {[%clk 0:01:39]}  Nexf6 {[%clk 0:01:26]} 28. f4 {[%clk 0:01:39]}  Rc2 {[%clk 0:01:25]} 29. Ne1 {[%clk 0:01:37]}  Re2 {[%clk 0:01:25]} 30. fxe5 {[%clk 0:01:29]}  Nd5 {[%clk 0:01:01]} 31. e6 {[%clk 0:01:12]}  Nf4 {[%clk 0:00:50]} 32. exf7+ {[%clk 0:00:46]}  Kxf7 {[%clk 0:00:45]} 0-1


[Site "https://www.chess.com"]

[Event "Titled Tuesday Blitz August 15 Early 2023"]
[White "Maltsevskaya, Aleksandra"]
[Black "Kashefi, Amir Hosein"]
[WhiteFideId "24174041"]
[BlackFideId "12557935"]
[WhiteElo "2668"]
[BlackElo "2520"]
[Result "1-0"]
[Round "10"]
[TimeControl "180+1"]
[Date "2023.08.15"]
[WhiteClock "0:00:12"]
[BlackClock "0:00:01"]
[Board "58"]

1. Nf3 {[%clk 0:02:39]}  d5 {[%clk 0:02:59]} 2. g3 {[%clk 0:02:40]}  c6 {[%clk 0:02:59]} 3. Bg2 {[%clk 0:02:40]}  Nf6 {[%clk 0:03:00]} 4. d3 {[%clk 0:02:41]}  Bf5 {[%clk 0:03:01]} 5. O-O {[%clk 0:02:41]}  e6 {[%clk 0:03:02]} 6. Nbd2 {[%clk 0:02:42]}  Bc5 {[%clk 0:03:02]} 7. b3 {[%clk 0:02:42]}  a5 {[%clk 0:03:02]} 8. Bb2 {[%clk 0:02:43]}  O-O {[%clk 0:03:02]} 9. Ne5 {[%clk 0:02:43]}  Nbd7 {[%clk 0:03:02]} 10. e4 {[%clk 0:02:44]}  dxe4 {[%clk 0:02:55]} 11. dxe4 {[%clk 0:02:45]}  Bg6 {[%clk 0:02:53]} 12. Nxg6 {[%clk 0:02:43]}  hxg6 {[%clk 0:02:54]} 13. Qe2 {[%clk 0:02:44]}  Qc7 {[%clk 0:02:47]} 14. e5 {[%clk 0:02:42]}  Nd5 {[%clk 0:02:41]} 15. c4 {[%clk 0:02:41]}  Nb4 {[%clk 0:02:39]} 16. Ne4 {[%clk 0:02:39]}  Be7 {[%clk 0:02:30]} 17. f4 {[%clk 0:02:39]}  Nc5 {[%clk 0:02:26]} 18. h4 {[%clk 0:02:33]}  a4 {[%clk 0:02:14]} 19. h5 {[%clk 0:02:25]}  gxh5 {[%clk 0:02:06]} 20. Qxh5 {[%clk 0:02:24]}  axb3 {[%clk 0:01:59]} 21. Nf6+ {[%clk 0:02:04]}  Bxf6 {[%clk 0:01:43]} 22. exf6 {[%clk 0:02:05]}  e5 {[%clk 0:01:10]} 23. fxg7 {[%clk 0:01:56]}  f6 {[%clk 0:00:57]} 24. Qh8+ {[%clk 0:01:51]}  Kf7 {[%clk 0:00:56]} 25. gxf8=Q+ {[%clk 0:01:52]}  Rxf8 {[%clk 0:00:52]} 26. Qh7+ {[%clk 0:01:52]}  Ke6 {[%clk 0:00:52]} 27. Bh3+ {[%clk 0:01:44]}  Kd6 {[%clk 0:00:51]} 28. fxe5+ {[%clk 0:01:44]}  fxe5 {[%clk 0:00:50]} 29. Bxe5+ {[%clk 0:01:43]}  Kxe5 {[%clk 0:00:49]} 30. Qxc7+ {[%clk 0:01:43]}  Kd4 {[%clk 0:00:49]} 31. Qd6+ {[%clk 0:01:39]}  Kxc4 {[%clk 0:00:48]} 32. Rac1+ {[%clk 0:00:23]}  Nc2 {[%clk 0:00:45]} 33. axb3+ {[%clk 0:00:22]}  Kb5 {[%clk 0:00:44]} 34. Rxf8 {[%clk 0:00:21]}  Ne4 {[%clk 0:00:40]} 35. Qd3+ {[%clk 0:00:19]}  Kb6 {[%clk 0:00:39]} 36. Qxe4 {[%clk 0:00:20]}  Na3 {[%clk 0:00:38]} 37. Qb4+ {[%clk 0:00:20]}  Nb5 {[%clk 0:00:37]} 38. Qxb5+ {[%clk 0:00:20]}  cxb5 {[%clk 0:00:36]} 39. Bf1 {[%clk 0:00:19]}  b4 {[%clk 0:00:35]} 40. Rc4 {[%clk 0:00:19]}  Ka5 {[%clk 0:00:35]} 41. Rxb4 {[%clk 0:00:17]}  Kxb4 {[%clk 0:00:22]} 42. Rb8 {[%clk 0:00:17]}  Ka5 {[%clk 0:00:19]} 43. b4+ {[%clk 0:00:16]}  Kb6 {[%clk 0:00:18]} 44. g4 {[%clk 0:00:17]}  Ka7 {[%clk 0:00:18]} 45. Rf8 {[%clk 0:00:16]}  Kb6 {[%clk 0:00:19]} 46. Bg2 {[%clk 0:00:16]}  Ka7 {[%clk 0:00:18]} 47. Bxb7 {[%clk 0:00:17]}  Kb6 {[%clk 0:00:18]} 48. b5 {[%clk 0:00:15]}  Ka5 {[%clk 0:00:19]} 49. b6 {[%clk 0:00:16]}  Kxb6 {[%clk 0:00:19]} 50. g5 {[%clk 0:00:15]}  Kc7 {[%clk 0:00:20]} 51. g6 {[%clk 0:00:15]}  Kd6 {[%clk 0:00:21]} 52. g7 {[%clk 0:00:16]}  Ke7 {[%clk 0:00:21]} 53. g8=Q {[%clk 0:00:16]}  Kd6 {[%clk 0:00:22]} 54. Bh1 {[%clk 0:00:16]}  Kc5 {[%clk 0:00:21]} 55. Kg2 {[%clk 0:00:17]}  Kd4 {[%clk 0:00:22]} 56. Qe6 {[%clk 0:00:15]}  Kc5 {[%clk 0:00:22]} 57. Rd8 {[%clk 0:00:15]}  Kb4 {[%clk 0:00:20]} 58. Qc6 {[%clk 0:00:12]}  Ka5 {[%clk 0:00:21]} 59. Qb7 {[%clk 0:00:13]}  Ka4 {[%clk 0:00:01]} 60. Ra8# {[%clk 0:00:12]} 1-0


[Site "https://www.chess.com"]

[Event "Titled Tuesday Blitz August 15 Early 2023"]
[White "Shuvalova, Polina"]
[Black "Reprintsev, Alexander"]
[WhiteFideId "24171760"]
[BlackFideId "14100541"]
[WhiteElo "2630"]
[BlackElo "2495"]
[Result "0-1"]
[Round "10"]
[TimeControl "180+1"]
[Date "2023.08.15"]
[WhiteClock "0:00:02"]
[BlackClock "0:00:12"]
[Board "62"]

1. Nf3 {[%clk 0:02:59]}  d5 {[%clk 0:02:49]} 2. g3 {[%clk 0:02:56]}  Nc6 {[%clk 0:02:47]} 3. d4 {[%clk 0:02:55]}  Bf5 {[%clk 0:02:45]} 4. Bg2 {[%clk 0:02:54]}  Nb4 {[%clk 0:02:44]} 5. Na3 {[%clk 0:02:54]}  e6 {[%clk 0:02:44]} 6. O-O {[%clk 0:02:53]}  h6 {[%clk 0:02:43]} 7. c3 {[%clk 0:02:41]}  Nc6 {[%clk 0:02:43]} 8. Nc2 {[%clk 0:02:38]}  Nf6 {[%clk 0:02:42]} 9. a4 {[%clk 0:02:32]}  a5 {[%clk 0:02:40]} 10. Na3 {[%clk 0:02:18]}  Bd6 {[%clk 0:02:30]} 11. Nb5 {[%clk 0:02:17]}  O-O {[%clk 0:02:30]} 12. Nxd6 {[%clk 0:02:14]}  cxd6 {[%clk 0:02:29]} 13. Ne1 {[%clk 0:02:10]}  Qb6 {[%clk 0:02:18]} 14. Nd3 {[%clk 0:02:05]}  Rfc8 {[%clk 0:02:14]} 15. Ra3 {[%clk 0:01:56]}  Bh7 {[%clk 0:02:11]} 16. Rb3 {[%clk 0:01:55]}  Qc7 {[%clk 0:02:06]} 17. h3 {[%clk 0:01:46]}  Ne7 {[%clk 0:01:56]} 18. Rb5 {[%clk 0:01:42]}  Rab8 {[%clk 0:01:42]} 19. Bf4 {[%clk 0:01:39]}  Qc6 {[%clk 0:01:30]} 20. Rxa5 {[%clk 0:01:27]}  Ra8 {[%clk 0:01:29]} 21. Nb4 {[%clk 0:01:04]}  Qd7 {[%clk 0:01:22]} 22. Rxa8 {[%clk 0:01:01]}  Rxa8 {[%clk 0:01:21]} 23. Qb3 {[%clk 0:01:01]}  g5 {[%clk 0:01:11]} 24. Bd2 {[%clk 0:00:58]}  Qxa4 {[%clk 0:01:11]} 25. Qxa4 {[%clk 0:00:56]}  Rxa4 {[%clk 0:01:12]} 26. f3 {[%clk 0:00:55]}  Nc6 {[%clk 0:01:09]} 27. Nd3 {[%clk 0:00:37]}  Ra2 {[%clk 0:01:05]} 28. Bc1 {[%clk 0:00:33]}  b5 {[%clk 0:01:04]} 29. h4 {[%clk 0:00:30]}  gxh4 {[%clk 0:00:58]} 30. g4 {[%clk 0:00:28]}  h5 {[%clk 0:00:51]} 31. g5 {[%clk 0:00:27]}  Nd7 {[%clk 0:00:50]} 32. Kh2 {[%clk 0:00:27]}  Nb6 {[%clk 0:00:49]} 33. Kh3 {[%clk 0:00:24]}  Nc4 {[%clk 0:00:49]} 34. Kxh4 {[%clk 0:00:18]}  b4 {[%clk 0:00:47]} 35. cxb4 {[%clk 0:00:09]}  Nxd4 {[%clk 0:00:44]} 36. Nf4 {[%clk 0:00:05]}  Nf5+ {[%clk 0:00:37]} 37. Kh3 {[%clk 0:00:03]}  h4 {[%clk 0:00:32]} 38. Nh5 {[%clk 0:00:02]}  Bg6 {[%clk 0:00:31]} 39. Nf6+ {[%clk 0:00:03]}  Kf8 {[%clk 0:00:31]} 40. e4 {[%clk 0:00:03]}  Nfe3 {[%clk 0:00:28]} 41. Bxe3 {[%clk 0:00:02]}  Nxe3 {[%clk 0:00:28]} 42. Rf2 {[%clk 0:00:03]}  d4 {[%clk 0:00:22]} 43. Kxh4 {[%clk 0:00:03]}  Ra4 {[%clk 0:00:18]} 44. b5 {[%clk 0:00:02]}  Rb4 {[%clk 0:00:18]} 45. b6 {[%clk 0:00:02]}  Ke7 {[%clk 0:00:17]} 46. Rd2 {[%clk 0:00:02]}  Rxb6 {[%clk 0:00:15]} 47. Bh3 {[%clk 0:00:02]}  Rb4 {[%clk 0:00:14]} 48. Kg3 {[%clk 0:00:02]}  Rc4 {[%clk 0:00:11]} 49. Bg4 {[%clk 0:00:02]}  e5 {[%clk 0:00:11]} 50. Ng8+ {[%clk 0:00:02]}  Kd8 {[%clk 0:00:10]} 51. Nf6 {[%clk 0:00:02]}  Kc7 {[%clk 0:00:10]} 52. Bh5 {[%clk 0:00:03]}  Bxh5 {[%clk 0:00:10]} 53. Nxh5 {[%clk 0:00:04]}  Nf1+ {[%clk 0:00:10]} 54. Kf2 {[%clk 0:00:03]}  Nxd2 {[%clk 0:00:11]} 55. Nf6 {[%clk 0:00:04]}  Rc2 {[%clk 0:00:10]} 56. Ke2 {[%clk 0:00:04]}  Rxb2 {[%clk 0:00:10]} 57. Kd3 {[%clk 0:00:05]}  Nf1 {[%clk 0:00:10]} 58. Nd5+ {[%clk 0:00:05]}  Kd7 {[%clk 0:00:09]} 59. Kc4 {[%clk 0:00:05]}  Ke6 {[%clk 0:00:10]} 60. g6 {[%clk 0:00:05]}  fxg6 {[%clk 0:00:09]} 61. f4 {[%clk 0:00:05]}  exf4 {[%clk 0:00:08]} 62. Kd3 {[%clk 0:00:05]}  Rd2+ {[%clk 0:00:08]} 63. Kc4 {[%clk 0:00:04]}  f3 {[%clk 0:00:09]} 64. Nf4+ {[%clk 0:00:04]}  Ke5 {[%clk 0:00:09]} 65. Nxg6+ {[%clk 0:00:03]}  Kxe4 {[%clk 0:00:09]} 66. Ne7 {[%clk 0:00:02]}  Rc2+ {[%clk 0:00:10]} 67. Kb3 {[%clk 0:00:02]}  Rc7 {[%clk 0:00:10]} 68. Ng6 {[%clk 0:00:02]}  Rb7+ {[%clk 0:00:11]} 69. Kc2 {[%clk 0:00:02]}  f2 {[%clk 0:00:11]} 70. Nh4 {[%clk 0:00:02]}  Ne3+ {[%clk 0:00:11]} 71. Kd2 {[%clk 0:00:02]}  f1=Q {[%clk 0:00:12]} 72. Nf3 {[%clk 0:00:02]}  Qd1# {[%clk 0:00:12]} 0-1


[Site "https://www.chess.com"]

[Event "Titled Tuesday Blitz August 15 Early 2023"]
[White "Papayan, Oleg"]
[Black "Devaev, Alexander"]
[WhiteFideId "4193911"]
[BlackFideId "4169395"]
[WhiteElo "2608"]
[BlackElo "2479"]
[Result "1-0"]
[Round "10"]
[TimeControl "180+1"]
[Date "2023.08.15"]
[WhiteClock "0:00:03"]
[BlackClock "0:00:00"]
[Board "63"]

1. e4 {[%clk 0:02:56]}  c6 {[%clk 0:02:53]} 2. Nc3 {[%clk 0:02:56]}  d5 {[%clk 0:02:53]} 3. Nf3 {[%clk 0:02:57]}  Nf6 {[%clk 0:02:52]} 4. e5 {[%clk 0:02:55]}  Ne4 {[%clk 0:02:52]} 5. Ne2 {[%clk 0:02:50]}  e6 {[%clk 0:02:53]} 6. d4 {[%clk 0:02:51]}  c5 {[%clk 0:02:47]} 7. Ng3 {[%clk 0:02:42]}  Nc6 {[%clk 0:02:40]} 8. dxc5 {[%clk 0:02:03]}  Nxg3 {[%clk 0:01:45]} 9. hxg3 {[%clk 0:02:04]}  Bxc5 {[%clk 0:01:45]} 10. Bd3 {[%clk 0:02:04]}  h6 {[%clk 0:01:35]} 11. O-O {[%clk 0:01:56]}  Bd7 {[%clk 0:01:30]} 12. Qe2 {[%clk 0:01:42]}  Qb6 {[%clk 0:01:19]} 13. c3 {[%clk 0:01:40]}  a5 {[%clk 0:01:17]} 14. a4 {[%clk 0:01:25]}  d4 {[%clk 0:00:52]} 15. Bb5 {[%clk 0:01:06]}  dxc3 {[%clk 0:00:50]} 16. bxc3 {[%clk 0:01:07]}  O-O {[%clk 0:00:43]} 17. Rd1 {[%clk 0:01:02]}  Rfd8 {[%clk 0:00:42]} 18. Bf4 {[%clk 0:00:49]}  Qc7 {[%clk 0:00:34]} 19. Qc4 {[%clk 0:00:39]}  Ne7 {[%clk 0:00:20]} 20. Rd2 {[%clk 0:00:39]}  Bxb5 {[%clk 0:00:18]} 21. Qxb5 {[%clk 0:00:34]}  b6 {[%clk 0:00:15]} 22. Rad1 {[%clk 0:00:31]}  Ng6 {[%clk 0:00:16]} 23. Rd7 {[%clk 0:00:27]}  Rxd7 {[%clk 0:00:14]} 24. Rxd7 {[%clk 0:00:28]}  Qc8 {[%clk 0:00:14]} 25. Qd3 {[%clk 0:00:14]}  Qe8 {[%clk 0:00:11]} 26. Nd2 {[%clk 0:00:06]}  Rc8 {[%clk 0:00:04]} 27. Ne4 {[%clk 0:00:05]}  Be7 {[%clk 0:00:03]} 28. Kh2 {[%clk 0:00:03]}  Bf8 {[%clk 0:00:00]} 29. c4 {[%clk 0:00:03]} 1-0


[Site "https://www.chess.com"]

[Event "Titled Tuesday Blitz August 15 Early 2023"]
[White "Ibadov, Dashgyn"]
[Black "Bueno, Alfeu Junior Varela"]
[WhiteFideId "24107514"]
[BlackFideId "2108879"]
[WhiteElo "2605"]
[BlackElo "2453"]
[Result "0-1"]
[Round "10"]
[TimeControl "180+1"]
[Date "2023.08.15"]
[WhiteClock "0:00:03"]
[BlackClock "0:00:04"]
[Board "64"]

1. e4 {[%clk 0:03:00]}  e6 {[%clk 0:02:59]} 2. d4 {[%clk 0:03:00]}  d5 {[%clk 0:03:00]} 3. Nc3 {[%clk 0:03:01]}  Nf6 {[%clk 0:02:59]} 4. e5 {[%clk 0:03:01]}  Nfd7 {[%clk 0:02:59]} 5. Nce2 {[%clk 0:03:02]}  c5 {[%clk 0:02:59]} 6. c3 {[%clk 0:03:01]}  Nc6 {[%clk 0:02:59]} 7. Nf3 {[%clk 0:03:01]}  cxd4 {[%clk 0:02:54]} 8. cxd4 {[%clk 0:03:01]}  f6 {[%clk 0:02:55]} 9. Nf4 {[%clk 0:03:01]}  Qe7 {[%clk 0:02:46]} 10. exf6 {[%clk 0:02:57]}  Qxf6 {[%clk 0:02:43]} 11. a3 {[%clk 0:02:32]}  Bd6 {[%clk 0:02:39]} 12. g3 {[%clk 0:02:20]}  O-O {[%clk 0:02:39]} 13. Bg2 {[%clk 0:02:16]}  g5 {[%clk 0:02:28]} 14. Nd3 {[%clk 0:02:05]}  g4 {[%clk 0:01:11]} 15. Nfe5 {[%clk 0:02:04]}  Ndxe5 {[%clk 0:01:04]} 16. dxe5 {[%clk 0:02:04]}  Nxe5 {[%clk 0:01:05]} 17. O-O {[%clk 0:01:32]}  Nf3+ {[%clk 0:00:57]} 18. Bxf3 {[%clk 0:01:32]}  Qxf3 {[%clk 0:00:57]} 19. Bf4 {[%clk 0:01:06]}  Qxd1 {[%clk 0:00:31]} 20. Raxd1 {[%clk 0:01:07]}  Bxf4 {[%clk 0:00:30]} 21. Nxf4 {[%clk 0:01:07]}  Bd7 {[%clk 0:00:31]} 22. Rfe1 {[%clk 0:01:07]}  Rae8 {[%clk 0:00:24]} 23. Re5 {[%clk 0:01:06]}  Rf7 {[%clk 0:00:16]} 24. Rde1 {[%clk 0:01:03]}  Rf6 {[%clk 0:00:08]} 25. Nxd5 {[%clk 0:01:01]}  Rf3 {[%clk 0:00:02]} 26. Nf4 {[%clk 0:00:54]}  Rb3 {[%clk 0:00:02]} 27. Nxe6 {[%clk 0:00:12]}  Bxe6 {[%clk 0:00:01]} 28. Rxe6 {[%clk 0:00:13]}  Rxe6 {[%clk 0:00:02]} 29. Rxe6 {[%clk 0:00:13]}  Rxb2 {[%clk 0:00:03]} 30. Re4 {[%clk 0:00:10]}  h5 {[%clk 0:00:02]} 31. Re5 {[%clk 0:00:11]}  Rb3 {[%clk 0:00:03]} 32. Rxh5 {[%clk 0:00:08]}  Rxa3 {[%clk 0:00:03]} 33. Rg5+ {[%clk 0:00:09]}  Kf7 {[%clk 0:00:04]} 34. Rxg4 {[%clk 0:00:10]}  b5 {[%clk 0:00:04]} 35. Rb4 {[%clk 0:00:08]}  Ra1+ {[%clk 0:00:02]} 36. Kg2 {[%clk 0:00:08]}  a6 {[%clk 0:00:03]} 37. h4 {[%clk 0:00:07]}  Rd1 {[%clk 0:00:03]} 38. g4 {[%clk 0:00:06]}  Rd5 {[%clk 0:00:04]} 39. Kg3 {[%clk 0:00:04]}  a5 {[%clk 0:00:04]} 40. Rb1 {[%clk 0:00:03]}  a4 {[%clk 0:00:05]} 41. g5 {[%clk 0:00:04]}  a3 {[%clk 0:00:05]} 42. Rb3 {[%clk 0:00:04]}  a2 {[%clk 0:00:03]} 43. Ra3 {[%clk 0:00:04]}  Rd2 {[%clk 0:00:04]} 44. Rd3 {[%clk 0:00:03]}  Rxd3+ {[%clk 0:00:04]} 0-1


[Site "https://www.chess.com"]

[Event "Titled Tuesday Blitz August 15 Early 2023"]
[White "Toktomushev, Teimur"]
[Black "Sadykov, Ramil"]
[WhiteFideId "14176726"]
[BlackFideId "24113590"]
[WhiteElo "2451"]
[BlackElo "2593"]
[Result "1-0"]
[Round "10"]
[TimeControl "180+1"]
[Date "2023.08.15"]
[WhiteClock "0:00:01"]
[BlackClock "0:00:00"]
[Board "66"]

1. d4 {[%clk 0:03:00]}  Nf6 {[%clk 0:02:59]} 2. c4 {[%clk 0:03:01]}  e6 {[%clk 0:02:59]} 3. Nf3 {[%clk 0:03:01]}  b6 {[%clk 0:02:59]} 4. g3 {[%clk 0:03:00]}  Ba6 {[%clk 0:02:58]} 5. b3 {[%clk 0:02:58]}  Bb4+ {[%clk 0:02:58]} 6. Bd2 {[%clk 0:02:57]}  Be7 {[%clk 0:02:58]} 7. Bg2 {[%clk 0:02:58]}  O-O {[%clk 0:02:55]} 8. O-O {[%clk 0:02:58]}  c6 {[%clk 0:02:55]} 9. Bc3 {[%clk 0:02:35]}  d5 {[%clk 0:02:19]} 10. Nbd2 {[%clk 0:02:34]}  Nbd7 {[%clk 0:02:15]} 11. Qc2 {[%clk 0:02:32]}  Rc8 {[%clk 0:02:10]} 12. e4 {[%clk 0:02:28]}  c5 {[%clk 0:01:59]} 13. Rfd1 {[%clk 0:01:30]}  cxd4 {[%clk 0:01:38]} 14. Nxd4 {[%clk 0:01:30]}  dxc4 {[%clk 0:01:35]} 15. Nxc4 {[%clk 0:01:29]}  Bxc4 {[%clk 0:01:34]} 16. bxc4 {[%clk 0:01:30]}  Rxc4 {[%clk 0:01:33]} 17. e5 {[%clk 0:00:55]}  Nd5 {[%clk 0:01:18]} 18. Bxd5 {[%clk 0:00:53]}  exd5 {[%clk 0:01:19]} 19. e6 {[%clk 0:00:54]}  Nc5 {[%clk 0:01:15]} 20. exf7+ {[%clk 0:00:39]}  Rxf7 {[%clk 0:01:16]} 21. Nc6 {[%clk 0:00:22]}  Qc7 {[%clk 0:01:11]} 22. Nxe7+ {[%clk 0:00:10]}  Qxe7 {[%clk 0:01:03]} 23. Rxd5 {[%clk 0:00:01]}  Ne4 {[%clk 0:00:58]} 24. Rd3 {[%clk 0:00:02]}  Nxf2 {[%clk 0:00:45]} 25. Rd4 {[%clk 0:00:02]}  Nh3+ {[%clk 0:00:25]} 26. Kg2 {[%clk 0:00:01]}  Rf2+ {[%clk 0:00:19]} 27. Qxf2 {[%clk 0:00:02]}  Nxf2 {[%clk 0:00:17]} 28. Rxc4 {[%clk 0:00:03]}  Nd3 {[%clk 0:00:12]} 29. Rc8+ {[%clk 0:00:03]}  Kf7 {[%clk 0:00:12]} 30. Rf1+ {[%clk 0:00:03]}  Ke6 {[%clk 0:00:07]} 31. Rc4 {[%clk 0:00:03]}  Qb7+ {[%clk 0:00:06]} 32. Kg1 {[%clk 0:00:03]}  Qd5 {[%clk 0:00:02]} 33. Rd4 {[%clk 0:00:03]}  Qc5 {[%clk 0:00:00]} 34. Ba1 {[%clk 0:00:01]} 1-0


[Site "https://www.chess.com"]